fUSD/lending_fUSD_20260225
["ID","MTS","AMOUNT","RATE_DAILY","PERIOD"]
[406625898,1771989043678,-10000.0,9.384e-05,2]
[406625899,1771989043687,-348.21,9.485e-05,2]
[406625900,1771989043698,-9999.99,9.485e-05,2]
[406625901,1771989043709,-171.05857016,0.0001,2]
[406625902,1771989043720,-208.3247189,0.0001,2]
[406625903,1771989043731,-208.3247189,0.0001,2]
[406625904,1771989043739,-587.0,0.00010226,2]
[406625905,1771989043749,-501.75629018,0.00010573,2]
[406625906,1771989043758,-500.0,0.00010573,2]
[406625907,1771989043767,-307.71196301,0.00010573,2]
[406625908,1771989043776,-500.0,0.00010573,2]
[406625909,1771989043786,-500.0,0.00010573,2]
[406625910,1771989043795,-491.8541633,0.00010573,2]
[406625911,1771989043804,-502.53914278,0.00010573,2]
[406625912,1771989043813,-500.0,0.00010573,2]
[406625913,1771989043822,-170.35126783,0.00010573,2]
[406625914,1771989043831,-500.27479094,0.00010573,2]
[406625915,1771989043839,-501.82753949,0.00010573,2]
[406625916,1771989043848,-500.99420847,0.00010573,2]
[406625917,1771989043858,-500.0,0.00010573,2]
[406625918,1771989043867,-500.0,0.00010573,2]
[406625919,1771989043876,-514.56546432,0.00010573,2]
[406625920,1771989043885,-500.66363066,0.00010573,2]
[406625921,1771989043894,-500.0,0.00010573,2]
[406625922,1771989043903,-503.193534,0.00010573,2]
[406625923,1771989043912,-500.0,0.00010573,2]
[406625924,1771989043921,-500.0,0.00010573,2]
[406625925,1771989043930,-500.0,0.00010573,2]
[406625926,1771989043939,-500.87120805,0.00010573,2]
[406625927,1771989043948,-250.0,0.00010806,2]
[406625928,1771989043957,-459.78553247,0.000109,2]
[406625929,1771989043966,-459.78553245,0.000109,2]
[406625930,1771989043975,-759.51415736,0.00011099,2]
[406625931,1771989043984,-759.51415731,0.00011099,2]
[406625932,1771989043995,-759.51415731,0.00011099,2]
[406625933,1771989044004,-459.78553245,0.00011131,2]
[406625934,1771989044013,-4581.43,0.00011233,2]
[406625935,1771989044022,-823.0,0.00011248,2]
[406625936,1771989044032,-759.51415731,0.00011583,2]
[406625937,1771989044040,-1152.0,0.00012373,2]
[406625938,1771989044049,-459.78553245,0.00012485,2]
[406625939,1771989044059,-759.51415731,0.00012636,2]
[406625941,1771989044070,-173.91437885,0.00012901,2]
[406625943,1771989044079,-2183.52,0.00013121,2]
[406625945,1771989044088,-171.05857016,0.00013162,2]
[406625946,1771989044098,-6948.36,0.00013441,2]
[406625947,1771989044279,-1613.0,0.0001361,2]
[406625948,1771989044289,-285.52,0.00013678,2]
[406625949,1771989044298,-759.51415731,0.00013688,2]
[406625950,1771989044308,-500.0,0.00013698,2]
[406625952,1771989044318,-261.64372905,0.00013698,2]
[406625954,1771989044327,-500.0,0.00013698,2]
[406625956,1771989044336,-500.0,0.00013698,2]
[406625957,1771989044345,-500.0,0.00013698,2]
[406625958,1771989044354,-500.0,0.00013698,2]
[406625959,1771989044364,-500.0,0.00013698,2]
[406625960,1771989044374,-500.0,0.00013698,2]
[406625961,1771989044383,-500.0,0.00013698,2]
[406625962,1771989044392,-476.47320889,0.00013698,2]
[406625963,1771989044401,-500.0,0.00013698,2]
[406625964,1771989044410,-500.0,0.00013698,2]
[406625965,1771989044419,-500.0,0.00013698,2]
[406625966,1771989044428,-500.0,0.00013698,2]
[406625967,1771989044437,-500.0,0.00013698,2]
[406625968,1771989044446,-500.0,0.00013698,2]
[406625969,1771989044455,-500.0,0.00013698,2]
[406625970,1771989044465,-636.13115332,0.00013698,2]
[406625971,1771989044474,-459.78553245,0.00013839,2]
[406625972,1771989044483,-12868.68,0.00013894,2]
[406625973,1771989044491,-4754.0,0.00014274,2]
[406625974,1771989044500,-759.51415731,0.00014741,2]
[406625975,1771989044510,-500.0,0.00014761,2]
[406625976,1771989044519,-2258.0,0.00014971,2]
[406625977,1771989044527,-250.0,0.00015,2]
[406625978,1771989044536,-823.45,0.00015068,2]
[406625979,1771989044545,-459.78553245,0.00015193,2]
[406625980,1771989044554,-759.51415731,0.00015794,2]
[406625981,1771989044563,-823.45,0.00016438,2]
[406625982,1771989044572,-459.78553245,0.00016546,2]
[406625983,1771989044581,-165.38,0.00016712,2]
[406625984,1771989044590,-759.51415731,0.00016847,2]
[406625985,1771989044599,-150.0,0.0001699,2]
[406625986,1771989044608,-200.0,0.0001699,2]
[406625987,1771989044617,-150.0,0.0001699,2]
[406625988,1771989044626,-150.0,0.0001699,2]
[406625989,1771989044635,-150.0,0.0001699,2]
[406625990,1771989044643,-150.0,0.0001699,2]
[406625991,1771989044653,-150.0,0.0001699,2]
[406625992,1771989044662,-150.0,0.0001699,2]
[406625993,1771989044671,-150.0,0.0001699,2]
[406625994,1771989044680,-150.0,0.0001699,2]
[406625995,1771989044689,-1340.0,0.0001699,2]
[406625996,1771989044698,-3497.0,0.0001699,2]
[406625997,1771989044707,-618.0,0.0001699,2]
[406625998,1771989044716,-1040.0,0.0001699,2]
[406625999,1771989044725,-150.0,0.0001699,2]
[406626000,1771989044734,-1277.0,0.0001699,2]
[406626001,1771989044743,-1210.0,0.0001699,2]
[406626002,1771989044751,-920.0,0.0001699,2]
[406626003,1771989044760,-5982.0,0.0001699,2]
[406626004,1771989044769,-2456.0,0.0001699,2]
[406626005,1771989044778,-5405.0,0.0001699,2]
[406626006,1771989044787,-300.0,0.00017,2]
[406626007,1771989044796,-150.0,0.00017534,2]
[406626008,1771989044805,-2559.12669434,0.0001764,2]
[406626009,1771989044814,-280.22014743,0.00017769,2]
[406626010,1771989044823,-987.75295232,0.00017808,2]
[406626011,1771989044832,-987.75295232,0.00017808,2]
[406626012,1771989044841,-987.75295232,0.00017808,2]
[406626013,1771989044851,-987.75295232,0.00017808,2]
[406626014,1771989044860,-987.75295232,0.00017808,2]
[406626015,1771989044870,-987.75295232,0.00017808,2]
[406626016,1771989044879,-987.75295232,0.00017808,2]
[406626017,1771989044888,-987.75295232,0.00017808,2]
[406626018,1771989044896,-987.75295232,0.00017808,2]
[406626019,1771989044905,-987.75295232,0.00017808,2]
[406626020,1771989044914,-987.75295232,0.00017808,2]
[406626021,1771989044923,-987.75295232,0.00017808,2]
[406626022,1771989044932,-987.75295232,0.00017808,2]
[406626023,1771989044941,-987.75295232,0.00017808,2]
[406626024,1771989044949,-987.75295232,0.00017808,2]
[406626025,1771989044959,-987.75295232,0.00017808,2]
[406626026,1771989044967,-987.75295232,0.00017808,2]
[406626027,1771989044976,-987.75295232,0.00017808,2]
[406626028,1771989044985,-1020.67805073,0.00017808,2]
[406626029,1771989044994,-1020.67805073,0.00017808,2]
[406626030,1771989045002,-1020.67805073,0.00017808,2]
[406626031,1771989045011,-1020.67805073,0.00017808,2]
[406626032,1771989045021,-1020.67805073,0.00017808,2]
[406626033,1771989045030,-1020.67805073,0.00017808,2]
[406626034,1771989045039,-1020.67805073,0.00017808,2]
[406626035,1771989045048,-1020.67805073,0.00017808,2]
[406626036,1771989045058,-1020.67805073,0.00017808,2]
[406626037,1771989045068,-800.0,0.00017808,2]
[406626038,1771989045077,-678.78776,0.0001782,2]
[406626039,1771989045086,-678.78777,0.0001782,2]
[406626040,1771989045095,-27859.3119556,0.00017861,2]
[406626041,1771989045104,-25000.0,0.00017882,3]
[406626042,1771989045113,-25000.0,0.00017891,3]
[406626043,1771989045122,-25000.0,0.000179,3]
[406626044,1771989045130,-171.05857016,0.000179,2]
[406626045,1771989045139,-459.78553245,0.000179,2]
[406626046,1771989045148,-759.51415731,0.000179,2]
[406626047,1771989045156,-227.23819075,0.00017982,2]
[406626048,1771989045165,-208.3247189,0.0001799,2]
[406626049,1771989045174,-151.0,0.00017997,2]
[406626050,1771989045183,-300.0,0.00017999,2]
[406626051,1771989045191,-300.0,0.00017999,2]
[406626052,1771989045200,-666.0,0.00017999,2]
[406626053,1771989045209,-300.0,0.00017999,2]
[406626054,1771989045218,-666.0,0.00017999,2]
[406626055,1771989045226,-1498085.44048382,0.00018,2]
[406626056,1771989045269,-5966.88000022,0.00018,2]
[406626057,1771989045281,-18796.1442,0.00018,2]
[406626058,1771989045308,-324.43005409,0.00018,2]
[406626059,1771989046266,-902.4970347,0.00018,2]
[406626060,1771989046329,-1759.16991075,0.00018,2]
[406626061,1771989046536,-253.0673823,0.00018,2]
[406626065,1771989245644,500.0,0.00045826,120]
[406626066,1771989245889,500.0,0.00045826,120]
[406626067,1771989246145,500.0,0.00045826,120]
[406626068,1771989246442,500.0,0.00045826,120]
[406626069,1771989246681,500.0,0.00045826,120]
[406626070,1771989246915,500.0,0.00045826,120]
[406626071,1771989247284,500.0,0.00045826,120]
[406626072,1771989247524,500.0,0.00045826,120]
[406626073,1771989247748,500.0,0.00045826,120]
[406626074,1771989247992,500.0,0.00045826,120]
[406626075,1771989248372,500.0,0.00045826,120]
[406626076,1771989248623,500.0,0.00045826,120]
[406626077,1771989248858,500.0,0.00045826,120]
[406626078,1771989249089,500.0,0.00045826,120]
[406626079,1771989249432,500.0,0.00045826,120]
[406626080,1771989249673,500.0,0.00045826,120]
[406626081,1771989249912,500.0,0.00045826,120]
[406626082,1771989250154,500.0,0.00045826,120]
[406626083,1771989250394,500.0,0.00045826,120]
[406626084,1771989250661,554.85724946,0.00045826,120]
[406626089,1771989318223,-300.0,8.423e-05,2]
[406626090,1771989318244,-1200.0,8.423e-05,2]
[406626091,1771989318266,-300.0,8.423e-05,2]
[406626092,1771989318287,-150.0,8.423e-05,2]
[406626093,1771989318309,-500.0,8.423e-05,2]
[406626094,1771989318335,-496.44902812,8.423e-05,2]
[406626095,1771989318361,-53.55097188,8.424e-05,2]
[406626096,1771989323140,-3000.0,8.424e-05,2]
[406626097,1771989323570,-3000.0,8.424e-05,2]
[406626098,1771989328212,-3000.0,8.424e-05,2]
[406626099,1771989329420,-3000.0,8.424e-05,2]
[406626100,1771989330354,-3000.0,8.424e-05,2]
[406626101,1771989331147,-3000.0,8.424e-05,2]
[406626102,1771989331524,-3000.0,8.424e-05,2]
[406626103,1771989331828,-3000.0,8.424e-05,2]
[406626104,1771989332227,-3000.0,8.424e-05,2]
[406626105,1771989332563,-3000.0,8.424e-05,2]
[406626106,1771989332946,-3000.0,8.424e-05,2]
[406626107,1771989333240,-3000.0,8.424e-05,2]
[406626108,1771989333634,-3000.0,8.424e-05,2]
[406626109,1771989333940,-3000.0,8.424e-05,2]
[406626110,1771989334190,-3000.0,8.424e-05,2]
[406626111,1771989334331,-3000.0,8.424e-05,2]
[406626112,1771989334661,-3000.0,8.424e-05,2]
[406626113,1771989335068,-3000.0,8.424e-05,2]
[406626114,1771989335423,-3000.0,8.424e-05,2]
[406626115,1771989335740,-3000.0,8.424e-05,2]
[406626116,1771989336282,-3000.0,8.424e-05,2]
[406626117,1771989336441,-3000.0,8.424e-05,2]
[406626118,1771989336825,-3000.0,8.424e-05,2]
[406626119,1771989337157,-3000.0,8.424e-05,2]
[406626120,1771989337542,-3000.0,8.424e-05,2]
[406626121,1771989337936,-3000.0,8.424e-05,2]
[406626122,1771989340052,-3000.0,8.424e-05,2]
[406626123,1771989340860,-3000.0,8.424e-05,2]
[406626124,1771989358391,-3000.0,8.424e-05,2]
[406626125,1771989359937,-3000.0,8.424e-05,2]
[406626126,1771989360634,-3000.0,8.424e-05,2]
[406626127,1771989361453,-3000.0,8.424e-05,2]
[406626128,1771989362430,-3000.0,8.424e-05,2]
[406626129,1771989363514,-3000.0,8.424e-05,2]
[406626130,1771989364364,-3000.0,8.424e-05,2]
[406626131,1771989365291,-3000.0,8.424e-05,2]
[406626132,1771989366726,-3000.0,8.424e-05,2]
[406626133,1771989367559,-3000.0,8.424e-05,2]
[406626134,1771989368467,-3000.0,8.424e-05,2]
[406626135,1771989369788,-3000.0,8.424e-05,2]
[406626136,1771989370583,-3000.0,8.424e-05,2]
[406626137,1771989371432,-3000.0,8.424e-05,2]
[406626138,1771989373450,-3000.0,8.424e-05,2]
[406626139,1771989376778,-3000.0,8.424e-05,2]
[406626140,1771989381258,-2000.0,8.424e-05,2]
[406626141,1771989428067,753.600929,7.945e-05,2]
[406626145,1771989474560,500.0,0.00045813,120]
[406626146,1771989474810,500.0,0.00045813,120]
[406626147,1771989475092,500.0,0.00045813,120]
[406626148,1771989475354,598.88990042,0.00045813,120]
[406626149,1771989479350,1274163.32421458,0.00045813,30]
[406626152,1771989984307,155.72016038,0.00045814,30]
[406626153,1771990013257,625.81,0.00045814,120]
[406626154,1771990013486,625.81,0.00045814,120]
[406626155,1771990013849,625.81,0.00045814,120]
[406626156,1771990013992,625.81,0.00045814,120]
[406626157,1771990014231,625.81,0.00045814,120]
[406626158,1771990014470,625.81,0.00045814,120]
[406626159,1771990014793,625.81,0.00045814,120]
[406626160,1771990015037,625.81,0.00045814,120]
[406626161,1771990015277,625.81,0.00045814,120]
[406626162,1771990015511,625.81,0.00045814,120]
[406626163,1771990015761,625.81,0.00045814,120]
[406626164,1771990015980,625.81,0.00045814,120]
[406626165,1771990016225,625.81,0.00045814,120]
[406626166,1771990016468,625.81,0.00045814,120]
[406626167,1771990016720,625.81,0.00045814,120]
[406626168,1771990016952,625.81,0.00045814,120]
[406626169,1771990017190,625.81,0.00045814,120]
[406626170,1771990017436,625.81,0.00045814,120]
[406626171,1771990017686,625.81,0.00045814,120]
[406626172,1771990017925,625.81,0.00045814,120]
[406626173,1771990018155,625.81,0.00045814,120]
[406626174,1771990018392,625.81,0.00045814,120]
[406626175,1771990018637,625.81,0.00045814,120]
[406626176,1771990018910,625.87000002,0.00045814,120]
[406626178,1771990078076,167.0,0.00045814,30]
[406626180,1771990103939,150.6,5.894e-05,2]
[406626181,1771990104169,150.6,6.112e-05,2]
[406626182,1771990104380,150.6,6.33e-05,2]
[406626183,1771990104593,150.6,6.549e-05,2]
[406626184,1771990104835,150.6,6.767e-05,2]
[406626185,1771990105047,150.6,6.985e-05,2]
[406626186,1771990105255,150.6,7.204e-05,2]
[406626187,1771990105457,150.6,7.422e-05,2]
[406626188,1771990105679,150.6,7.64e-05,2]
[406626189,1771990105875,150.6,7.859e-05,2]
[406626190,1771990106401,150.6,8.077e-05,2]
[406626191,1771990166973,-1108.943,8.158e-05,2]
[406626192,1771990166994,-162.311,8.158e-05,2]
[406626193,1771990167015,-250.0,8.194e-05,2]
[406626194,1771990186608,-151.0,8.221e-05,2]
[406626195,1771990186631,-3500000.0,8.224e-05,2]
[406626196,1771990186652,-4132.8248,8.224e-05,2]
[406626197,1771990186673,-38586.8241,8.224e-05,2]
[406626206,1771990231313,-250.0,8.255e-05,2]
[406626208,1771990231322,-219.0,8.255e-05,2]
[406626210,1771990231331,-150.6,8.295e-05,2]
[406626212,1771990231341,-245.64,8.3e-05,2]
[406626213,1771990231350,-311.0,8.301e-05,2]
[406626214,1771990231358,-1200.0,8.322e-05,2]
[406626215,1771990231367,-300.0,8.323e-05,2]
[406626216,1771990231376,-500.0,8.323e-05,2]
[406626217,1771990231384,-197.51431968,8.323e-05,2]
[406626218,1771990231393,-999.99,8.324e-05,2]
[406626219,1771990231402,-150.99,8.324e-05,2]
[406626220,1771990231419,-3663.07,8.324e-05,2]
[406626221,1771990231429,-150.99,8.423e-05,2]
[406626222,1771990231439,-9999.99,8.423e-05,2]
[406626223,1771990231448,-5973.1190976,8.424e-05,2]
[406626224,1771990231457,-150.6,8.513e-05,2]
[406626225,1771990231467,-150.6,8.732e-05,2]
[406626226,1771990231476,-150.6,8.95e-05,2]
[406626227,1771990231486,-250.0,8.974e-05,2]
[406626228,1771990231495,-5000.0,9e-05,2]
[406626229,1771990231504,-250.0,9.08e-05,2]
[406626230,1771990231514,-150.6,9.168e-05,2]
[406626231,1771990231523,-150.6,9.387e-05,2]
[406626232,1771990231533,-1332.7830208,9.491e-05,2]
[406626233,1771990231542,-150.6,9.605e-05,2]
[406626234,1771990231551,-297.3840888,9.729e-05,2]
[406626235,1771990231561,-150.6,9.823e-05,2]
[406626236,1771990231571,-150.0,0.0001,2]
[406626237,1771990231584,-1852.42,0.00010417,2]
[406626238,1771990231594,-500.0,0.00010573,2]
[406626239,1771990231603,-250.0,0.00010779,2]
[406626240,1771990231613,-250.0,0.00011,2]
[406626241,1771990231624,-1737.81361671,0.00011099,2]
[406626242,1771990231633,-1691.66248234,0.00011099,2]
[406626243,1771990231647,-46.15113435,0.00011099,2]
[406626244,1771990231657,-1737.81361669,0.00011099,2]
[406626245,1771990231667,-1000.0,0.00011121,2]
[406626246,1771990231676,-141.93789573,0.00011449,2]
[406626247,1771990231687,-1595.87572096,0.00011449,2]
[406626248,1771990231697,-166.66,0.00011613,2]
[406626249,1771990231706,-1530.35765022,0.00011668,2]
[406626250,1771990231716,-166.66,0.00011857,2]
[406626251,1771990231725,-217.19,0.00011863,2]
[406626252,1771990231735,-166.66,0.00012102,2]
[406626253,1771990231744,-166.66,0.00012346,2]
[406626254,1771990231754,-1737.81361669,0.00012524,2]
[406626255,1771990231763,-166.66,0.00012591,2]
[406626256,1771990231773,-500.0,0.00012772,2]
[406626257,1771990231783,-173.91437885,0.00012789,2]
[406626258,1771990231796,-166.66,0.00012835,2]
[406626259,1771990231805,-3240.0,0.00013425,2]
[406626260,1771990231815,-1737.81361669,0.000136,2]
[406626261,1771990231825,-500.0,0.00013698,2]
[406626262,1771990231834,-500.0,0.00013698,2]
[406626263,1771990231844,-500.0,0.00013698,2]
[406626264,1771990231853,-500.0,0.00013698,2]
[406626265,1771990231863,-500.0,0.00013698,2]
[406626266,1771990231872,-500.0,0.00013698,2]
[406626267,1771990231881,-500.0,0.00013698,2]
[406626268,1771990231895,-500.0,0.00013698,2]
[406626269,1771990231905,-500.0,0.00013698,2]
[406626270,1771990231914,-391.12749366,0.00013698,2]
[406626271,1771990231926,-108.87250634,0.00013698,2]
[406626272,1771990231935,-431.03378063,0.00013698,2]
[406626273,1771990231946,-68.96621937,0.00013698,2]
[406626274,1771990231955,-500.0,0.00013698,2]
[406626275,1771990231965,-500.0,0.00013698,2]
[406626276,1771990231976,-500.0,0.00013698,2]
[406626277,1771990231985,-438.24403634,0.00013698,2]
[406626279,1771990237538,-61.75596366,0.00013698,2]
[406626280,1771990237548,-500.0,0.00013698,2]
[406626281,1771990237557,-500.0,0.00013698,2]
[406626282,1771990237567,-500.0,0.00013698,2]
[406626283,1771990237577,-500.0,0.00013698,2]
[406626284,1771990237590,-500.0,0.00013698,2]
[406626285,1771990237600,-500.0,0.00013698,2]
[406626286,1771990237609,-500.0,0.00013698,2]
[406626287,1771990237619,-500.0,0.00013698,2]
[406626288,1771990237628,-500.0,0.00013698,2]
[406626289,1771990237637,-500.0,0.00013698,2]
[406626290,1771990237646,-365.67672523,0.00013698,2]
[406626291,1771990237656,-571.13,0.00013698,2]
[406626292,1771990237666,-571.13,0.00013698,2]
[406626293,1771990237675,-571.13,0.00013698,2]
[406626294,1771990237684,-571.13,0.00013698,2]
[406626295,1771990237694,-194.80110515,0.00013698,2]
[406626296,1771990237706,-376.32889485,0.00013698,2]
[406626297,1771990237715,-229.58157423,0.00013698,2]
[406626298,1771990237726,-341.54842577,0.00013698,2]
[406626299,1771990237735,-571.13,0.00013698,2]
[406626300,1771990237744,-80.66309764,0.00013698,2]
[406626301,1771990237755,-490.46690236,0.00013698,2]
[406626302,1771990237764,-571.13,0.00013698,2]
[406626303,1771990237774,-571.13,0.00013698,2]
[406626304,1771990237787,-571.13,0.00013698,2]
[406626305,1771990237796,-571.13,0.00013698,2]
[406626306,1771990237805,-571.13,0.00013698,2]
[406626307,1771990237814,-571.13,0.00013698,2]
[406626309,1771990237823,-500.0,0.00013698,2]
[406626311,1771990237832,-500.0,0.00013698,2]
[406626313,1771990237842,-500.0,0.00013698,2]
[406626315,1771990237852,-500.0,0.00013698,2]
[406626317,1771990237862,-500.0,0.00013698,2]
[406626319,1771990237871,-500.0,0.00013698,2]
[406626321,1771990237882,-500.0,0.00013698,2]
[406626323,1771990237892,-500.0,0.00013698,2]
[406626324,1771990237901,-500.0,0.00013698,2]
[406626325,1771990237911,-500.0,0.00013698,2]
[406626326,1771990237920,-500.0,0.00013698,2]
[406626327,1771990237930,-500.0,0.00013698,2]
[406626328,1771990237939,-500.0,0.00013698,2]
[406626329,1771990237949,-500.0,0.00013698,2]
[406626330,1771990237959,-500.0,0.00013698,2]
[406626331,1771990237968,-500.0,0.00013698,2]
[406626332,1771990237978,-500.0,0.00013698,2]
[406626333,1771990237988,-500.0,0.00013698,2]
[406626334,1771990237997,-500.0,0.00013698,2]
[406626335,1771990238006,-500.0,0.00013698,2]
[406626336,1771990238015,-532.53256968,0.00013698,2]
[406626337,1771990238025,-500.0,0.00013698,2]
[406626338,1771990238034,-500.0,0.00013698,2]
[406626339,1771990238044,-500.0,0.00013698,2]
[406626340,1771990238056,-500.0,0.00013698,2]
[406626341,1771990238067,-500.0,0.00013698,2]
[406626342,1771990238077,-500.0,0.00013698,2]
[406626343,1771990238087,-210.17,0.000137,2]
[406626344,1771990238096,-200.0,0.0001377,2]
[406626345,1771990238106,-1000.87,0.00013876,2]
[406626346,1771990238115,-228.42,0.00014191,2]
[406626347,1771990238125,-1737.81361669,0.00014675,2]
[406626348,1771990238135,-250.0,0.00015,2]
[406626349,1771990238144,-162.20020905,0.000151,2]
[406626350,1771990238153,-200.0,0.00015283,2]
[406626351,1771990238163,-1737.81361669,0.0001575,2]
[406626352,1771990238172,-1500.0,0.00016107,2]
[406626353,1771990238182,-61194.05179294,0.000162,5]
[406626354,1771990238191,-1000.0,0.00016418,2]
[406626355,1771990238201,-1737.81361669,0.00016825,2]
[406626356,1771990238212,-150.0,0.00016886,2]
[406626357,1771990238222,-200.0,0.00016983,2]
[406626358,1771990238231,-300.0,0.00017,2]
[406626359,1771990238241,-160.70385615,0.00017,2]
[406626360,1771990238253,-150.0,0.00017534,2]
[406626361,1771990238262,-4014.0,0.00017567,2]
[406626362,1771990238271,-150.0,0.00017589,2]
[406626363,1771990238281,-1706.0844629,0.0001764,2]
[406626364,1771990238290,-150.0,0.00017644,2]
[406626365,1771990238299,-157.0,0.00017698,2]
[406626366,1771990238308,-718.09639634,0.00017808,2]
[406626367,1771990238318,-718.09639634,0.00017808,2]
[406626368,1771990238327,-718.09639634,0.00017808,2]
[406626369,1771990238335,-718.09639634,0.00017808,2]
[406626370,1771990238345,-718.09639634,0.00017808,2]
[406626371,1771990238354,-718.09639634,0.00017808,2]
[406626372,1771990238363,-718.09639634,0.00017808,2]
[406626373,1771990238372,-718.09639634,0.00017808,2]
[406626374,1771990238382,-718.09639634,0.00017808,2]
[406626375,1771990238392,-718.09639634,0.00017808,2]
[406626376,1771990238401,-718.09639634,0.00017808,2]
[406626377,1771990238410,-718.09639634,0.00017808,2]
[406626378,1771990238419,-718.09639634,0.00017808,2]
[406626379,1771990238428,-718.09639634,0.00017808,2]
[406626380,1771990238438,-718.09639634,0.00017808,2]
[406626381,1771990238447,-718.09639634,0.00017808,2]
[406626382,1771990238459,-718.09639634,0.00017808,2]
[406626383,1771990238468,-724.62454539,0.00017808,2]
[406626384,1771990238478,-724.62454539,0.00017808,2]
[406626385,1771990238487,-724.62454539,0.00017808,2]
[406626386,1771990238496,-724.62454539,0.00017808,2]
[406626387,1771990238505,-724.62454539,0.00017808,2]
[406626388,1771990238514,-724.62454539,0.00017808,2]
[406626389,1771990238523,-724.62454539,0.00017808,2]
[406626390,1771990238533,-724.62454539,0.00017808,2]
[406626391,1771990238542,-724.62454539,0.00017808,2]
[406626392,1771990238552,-724.62454539,0.00017808,2]
[406626393,1771990238561,-724.62454539,0.00017808,2]
[406626394,1771990238571,-800.0,0.00017808,2]
[406626395,1771990238584,-150.0,0.0001782,2]
[406626396,1771990238594,-1277.0,0.0001782,2]
[406626397,1771990238604,-1210.0,0.0001782,2]
[406626398,1771990238614,-920.0,0.0001782,2]
[406626399,1771990238623,-1340.0,0.0001782,2]
[406626400,1771990238633,-618.0,0.0001782,2]
[406626401,1771990238643,-1737.81361669,0.000179,2]
[406626402,1771990238652,-22277.80410254,0.000179,2]
[406626403,1771990238663,-195.84872889,0.0001799,2]
[406626404,1771990238673,-195.84872889,0.0001799,2]
[406626405,1771990238683,-151.0,0.00017997,2]
[406626406,1771990238693,-571.13,0.00017998,2]
[406626407,1771990238703,-500.0,0.00017998,2]
[406626408,1771990238712,-155.0,0.00017999,2]
[406626409,1771990238723,-300.0,0.00017999,2]
[406626410,1771990238734,-300.0,0.00017999,2]
[406626411,1771990238744,-666.0,0.00017999,2]
[406626412,1771990238754,-500.0,0.00017999,2]
[406626413,1771990238764,-500.0,0.00017999,2]
[406626414,1771990238774,-500.0,0.00017999,2]
[406626415,1771990238784,-500.0,0.00017999,2]
[406626416,1771990238794,-500.0,0.00017999,2]
[406626417,1771990238804,-500.0,0.00017999,2]
[406626418,1771990238813,-381.95704796,0.00017999,2]
[406626419,1771990238823,-300.0,0.00017999,2]
[406626420,1771990238832,-666.0,0.00017999,2]
[406626421,1771990238842,-571.13,0.00017999,2]
[406626422,1771990238865,-571.13,0.00017999,2]
[406626423,1771990238875,-571.13,0.00017999,2]
[406626424,1771990238888,-571.13,0.00017999,2]
[406626425,1771990238898,-571.13,0.00017999,2]
[406626426,1771990238908,-571.13,0.00017999,2]
[406626427,1771990238918,-571.13,0.00017999,2]
[406626428,1771990238928,-571.13,0.00017999,2]
[406626429,1771990238937,-571.1810629,0.00017999,2]
[406626430,1771990238948,-500.0,0.00017999,2]
[406626431,1771990238958,-500.0,0.00017999,2]
[406626432,1771990238968,-500.0,0.00017999,2]
[406626433,1771990238978,-386.19326799,0.00017999,2]
[406626434,1771990238988,-2739000.75233422,0.00018,2]
[406626435,1771990239003,-539.93551002,0.00018,2]
[406626436,1771990239305,-5000.0,8.124e-05,2]
[406626439,1771990240059,-1743.3334,8.124e-05,2]